[Event "9th Porticcio Open 2024"]
[Site "Porticcio"]
[Date "2024.07.01"]
[Round "1.7"]
[White "Druska, Juraj"]
[Black "Markuszewski, Maksymilian"]
[Result "1-0"]
[ECO "B92"]
[WhiteElo "2466"]
[BlackElo "2114"]
[Annotator "TA"]
[PlyCount "85"]
[EventDate "2024.07.01"]
[EventType "swiss"]
[EventCountry "FRA"]
[SourceTitle "playchess.com"]
[Source "ChessBase"]
[SourceQuality "1"]
[TimeControl "5400+30"]

{[%evp 19,85,5,3,5,14,9,10,7,22,2,0,3,9,8,23,9,15,20,24,20,21,18,20,17,19,20,27,18,15,19,40,41,45,45,45,41,48,43,98,96,112,95,111,108,114,124,119,50,89,-20,-19,-22,91,99,79,81,74,72,165,125,214,182,216,193,501,504,657,422]} 1. e4 {[%emt 0:00:05]} c5 {[%emt 0:00:30]} 2. Nf3 {[%emt 0:00:13]} d6 {[%emt 0:00:02]} 3. d4 {[%emt 0:00:14]} cxd4 {[%emt 0:00:04]} 4. Nxd4 {[%emt 0:00:06]} Nf6 {[%emt 0:00:02]} 5. Nc3 {[%emt 0:00:11]} a6 {[%emt 0:00:02]} 6. Be2 {[%emt 0:00:14]} e5 {[%emt 0:00:06]} 7. Nf3 {[%emt 0:00:10]} Be7 {[%emt 0:00:40]} 8. Bg5 {[%emt 0:00:21]} Be6 {[%emt 0:00:49]} 9. Bxf6 {[%emt 0:00:29]} Bxf6 {[%emt 0:01:06]} 10. O-O {[%emt 0:00:19]} O-O {[%emt 0:02:04]} 11. Qd2 {[%emt 0:00:14]} Be7 {[%emt 0:10:36]} 12. Nd5 {[%emt 0:00:31]} Bxd5 {[%emt 1:20:29]} 13. Qxd5 {[%emt 0:00:23] The position is equal.} Qc7 {[%emt 0:00:00]} 14. Bc4 {[%emt 0:07:13][%cal Be2c4,Bc4b3,Bb3d5][%mdl 32]} Nd7 {[%emt 0:00:00]} 15. Bb3 {[%emt 0:00:43]} Rac8 {[%emt 0:00:00]} 16. c3 {[%emt 0:06:30]} Qc6 {[%emt 0:00:00]} 17. Rfe1 {[%emt 0:11:49]} Qxd5 {[%emt 0:00:00]} 18. Bxd5 {[%emt 0:00:17]} Rc7 {[%emt 0:00:00]} 19. Rad1 {[%emt 0:06:50]} b5 {[%emt 0:00:00]} 20. Re2 {[%emt 0:04:55]} g6 {[%emt 0:00:00]} 21. Ne1 {[%emt 0:01:56][%cal Bf3e1,Be1c2,Bc2e3][%mdl 32]} Kg7 {[%emt 0:00:00][%cal Bg8g7,Bg7f6,Bf6e7][%mdl 32]} 22. Nc2 {[%emt 0:01:26]} a5 {[%emt 0:00:00]} 23. Bb3 {[%emt 0:16:17]} Rb8 {[%emt 0:00:00]} 24. Ne3 {[%emt 0:04:17] Nd5 is the strong threat.} Nb6 {[%emt 0:00:00]} 25. a3 {[%emt 0:01:08]} Bf8 {[%emt 0:00:00]} 26. g3 {[%emt 0:05:08]} Kf6 {[%emt 0:00:00]} 27. Rd3 {[%emt 0:05:11]} Ke7 {[%emt 0:00:00]} 28. f4 {[%emt 0:04:06]} f6 {[%emt 0:00:00]} (28... exf4 $14 29. gxf4 Bh6) 29. Kg2 $16 {[%emt 0:00:32]} Rc6 {[%emt 0:00:00]} 30. Kf3 {[%emt 0:01:12] White has more active pieces.} Bg7 {[%emt 0:00:00]} 31. h4 {[%emt 0:07:10]} Rf8 {[%emt 0:00:00] [#]} 32. h5 $1 {[%emt 0:01:30][%mdl 512]} f5 {[%emt 0:00:00] [#]} 33. hxg6 {[%emt 0:00:55]} (33. exf5 $1 $16 {Hoping for Bd5.} gxf5 34. Rd1) 33... hxg6 {[%emt 0:00:00]} 34. Rh2 {[%emt 0:00:02]} (34. exf5 $16 {Bd5 would now be deadly.} gxf5 35. Kg2) 34... fxe4+ $11 {[%emt 0:00:00]} 35. Kxe4 {[%emt 0:00:07]} Rh8 {[%emt 0:00:07] Dodges Rh7} (35... Nd7 $11 {keeps the balance.} 36. Rdd2 Nc5+ 37. Kd5 Rcc8) 36. Rxh8 $16 {[%emt 0:01:02]} Bxh8 {[%emt 0:00:05]} 37. Rd2 {[%emt 0:00:47]} exf4 {[%emt 0:02:06]} 38. gxf4 {[%emt 0:00:06][%cal Bg3f4,Bf4f5][%mdl 32]} Nd7 {[%emt 0:06:40]} (38... Rc5 $16) 39. Kf3 {[%emt 0:00:25]} Bg7 {[%emt 0:02:49]} (39... Nb6 $16 40. Re2 Kf8) 40. Rg2 {[%emt 0:01:29]} Nf8 {[%emt 0:01:07]} 41. f5 {[%emt 0:00:40]} Kf6 $2 {[%emt 0:01:02]} (41... a4) 42. Nd5+ $18 {[%emt 0:00:38]} Ke5 {[%emt 0:00:07]} 43. Re2+ {[%emt 0:14:09] Weighted Error Value: White=0.15 (very precise) /Black=0.32.  Mistake:       	White=2     	Black=5      Inaccurate:     	---       	Black=2      OK:         	White=12    	Black=9      Best:        	White=1     	---} 1-0

[Event "9th Porticcio Open 2024"]
[Site "Porticcio"]
[Date "2024.07.01"]
[Round "1.8"]
[White "Pattnayak Nilsu"]
[Black "Batsiashvili, Nino"]
[Result "0-1"]
[ECO "C79"]
[WhiteElo "2113"]
[BlackElo "2450"]
[Annotator "TA"]
[PlyCount "78"]
[EventDate "2024.07.01"]
[EventType "swiss"]
[EventCountry "FRA"]
[SourceTitle "playchess.com"]
[Source "ChessBase"]
[SourceQuality "1"]
[TimeControl "5400+30"]

{[%evp 15,78,31,38,32,32,33,33,10,18,15,26,0,0,0,0,0,0,0,0,0,-14,-21,-25,-22,-17,-17,-22,-22,-27,-64,-72,-60,-68,-112,-110,-122,-66,-69,-62,-80,-75,-80,-63,-58,-59,-77,-50,-107,-107,-289,-287,-260,-98,-375,-391,-404,-387,-621,-581,-1759,-1429,-4133,-2241,-29978,-29979]} 1. e4 {[%emt 0:00:27]} e5 {[%emt 0:03:47]} 2. Nf3 {[%emt 0:00:08]} Nc6 {[%emt 0:00:09]} 3. Bb5 {[%emt 0:00:13]} a6 {[%emt 0:00:09]} 4. Ba4 {[%emt 0:00:11]} Nf6 {[%emt 0:00:40]} 5. O-O {[%emt 0:00:06]} d6 {[%emt 0:01:21]} 6. Re1 {[%emt 0:01:37]} Bd7 {[%emt 0:00:31]} 7. c3 {[%emt 0:00:59]} g6 {[%emt 0:00:17]} 8. d4 {[%emt 0:03:17]} Bg7 {[%emt 0:00:27]} 9. Nbd2 {[%emt 0:05:34]} Nh5 {[%emt 0:05:23]} 10. Nf1 {[%emt 0:06:02]} O-O {[%emt 0:00:40]} 11. Bg5 {[%emt 0:03:53] White is slightly better.} Qe8 {[%emt 0:03:20][%cal Oc6d4]} 12. d5 {[%emt 0:09:39]} Nb8 {[%emt 0:01:12][%cal Bc6b8,Bb8d7,Bd7c5][%mdl 32]} 13. Bxd7 {[%emt 0:06:22]} Nxd7 {[%emt 0:00:06]} 14. Ng3 {[%emt 0:00:13]} Nxg3 {[%emt 0:06:06]} 15. hxg3 {[%emt 0:00:11]} h6 {[%emt 0:00:05]} 16. Bd2 {[%emt 0:03:52]} a5 {[%emt 0:07:04]} 17. a4 {[%emt 0:05:38]} Nc5 {[%emt 0:01:12]} 18. b4 {[%emt 0:06:09]} axb4 {[%emt 0:04:00]} 19. cxb4 {[%emt 0:00:06]} Nxa4 {[%emt 0:00:49]} 20. Qc1 {[%emt 0:00:22]} c5 {[%emt 0:05:03]} 21. dxc6 $1 {[%emt 0:02:44]} Qxc6 {[%emt 0:00:18]} 22. Bxh6 {[%emt 0:00:55]} Qxc1 {[%emt 0:04:38]} 23. Bxc1 {[%emt 0:00:12] [#]} d5 $1 {[%emt 0:02:29]} 24. Ra3 {[%emt 0:10:18]} (24. Bd2 b5) 24... d4 {[%emt 0:01:43]} 25. Bd2 {[%emt 0:04:05]} Rfc8 {[%emt 0:05:07]} (25... Nb6 $17 26. Raa1 Nc4) 26. Rea1 $15 {[%emt 0:05:09]} b5 {[%emt 0:00:15]} 27. Ne1 {[%emt 0:00:04] Wards off Rc2} f5 {[%emt 0:01:18]} 28. f3 {[%emt 0:02:59]} Rc4 {[%emt 0:04:26] Black is more active.} 29. Nd3 {[%emt 0:02:38]} fxe4 {[%emt 0:01:28]} 30. fxe4 {[%emt 0:00:10]} Rac8 {[%emt 0:00:04]} 31. Rf1 {[%emt 0:04:04]} (31. Kf2 $15) 31... Rc2 $17 {[%emt 0:00:53]} 32. Rc1 $2 {[%emt 0:09:34] [#]} (32. Rf2 $17 {keeps fighting.}) 32... Rxc1+ $1 $19 {[%emt 0:03:10]} 33. Nxc1 {[%emt 0:00:09]} Bf8 $2 {[%emt 0:02:11]} (33... Nc3 $19 {has better winning chances. Threatens to win with ...Nb1.} 34. Bxc3 Rxc3 (34... dxc3 $2 35. Ra5 $19)) 34. Ra1 {[%emt 0:06:13][%mdl 8192]} (34. Nd3 $17) 34... Nc3 {[%emt 0:03:08]} 35. Bxc3 {[%emt 0:00:19]} dxc3 {[%emt 0:00:10]} ({Much less strong is} 35... Rxc3 36. Ne2 Re3 37. Kf2 $19) 36. Nd3 $2 {[%emt 0:03:04]} (36. Kf2) 36... c2 {[%emt 0:00:20]} 37. Rc1 {[%emt 0:00:50]} Bh6 {[%emt 0:00:06] ( -> ...Be3+)} 38. Ra1 {[%emt 0:00:06]} c1=Q+ {[%emt 0:00:22]} 39. Nxc1 {[%emt 0:00:21]} Rxc1+ {[%emt 0:00:06] Weighted Error Value: White=0.84/Black=0.33.  Loses game:     	White=2     	---        Missed win:     	---       	Black=1      Mistake:       	White=2     	Black=1      Inaccurate:     	White=5     	Black=1      OK:         	White=6     	Black=13     Best:        	---       	Black=3      Strong:       	White=1     	Black=1} 0-1

[Event "9th Porticcio Open 2024"]
[Site "Porticcio"]
[Date "2024.07.01"]
[Round "1.9"]
[White "Vuitton, Gilles"]
[Black "Gerandi, Pierre-Marie"]
[Result "1-0"]
[ECO "B03"]
[WhiteElo "1980"]
[BlackElo "1670"]
[Annotator "NA RC"]
[PlyCount "45"]
[EventDate "2024.07.01"]
[EventType "swiss"]
[EventCountry "FRA"]
[SourceTitle "playchess.com"]
[Source "ChessBase"]
[SourceQuality "1"]
[TimeControl "5400+30"]

1. e4 {[%emt 0:02:57]} Nf6 {[%emt 0:00:06]} 2. e5 {[%emt 0:00:22]} Nd5 {[%emt 0:00:06]} 3. d4 {[%emt 0:00:15]} d6 {[%emt 0:00:05]} 4. c4 {[%emt 0:00:10]} Nb6 {[%emt 0:00:05]} 5. exd6 {[%emt 0:00:09]} cxd6 {[%emt 0:00:05]} 6. Nc3 {[%emt 0:00:20]} g6 {[%emt 0:00:03]} 7. Be3 {[%emt 0:00:06]} Bg7 {[%emt 0:00:04]} 8. Rc1 {[%emt 0:00:10]} Nc6 {[%emt 0:00:10]} 9. d5 {[%emt 0:06:33]} Ne5 {[%emt 0:00:04]} 10. Be2 {[%emt 0:00:33]} Nbxc4 {[%emt 0:00:30]} 11. Bxc4 {[%emt 0:01:08]} Nxc4 {[%emt 0:00:10]} 12. Qa4+ {[%emt 0:00:07]} Bd7 {[%emt 1:35:02]} 13. Qxc4 {[%emt 1:24:10]} O-O {[%emt 0:00:00]} 14. Nf3 {[%emt 0:00:00]} e6 {[%emt 0:00:00]} 15. O-O {[%emt 0:00:00]} a6 {[%emt 0:00:00]} 16. Qh4 {[%emt 0:00:00]} Qa5 {[%emt 0:00:00]} 17. Bh6 {[%emt 0:00:00]} Qd8 {[%emt 0:00:00]} 18. Qxd8 {[%emt 0:00:00]} Rfxd8 {[%emt 0:00:00]} 19. Bxg7 {[%emt 0:00:00]} Kxg7 {[%emt 0:00:00]} 20. dxe6 {[%emt 0:00:00]} Bxe6 {[%emt 0:00:00]} 21. Nd4 {[%emt 0:00:00]} Bd7 {[%emt 0:00:00]} 22. Nd5 {[%emt 0:00:00]} Be8 {[%emt 0:00:00]} 23. Rc7 {[%emt 0:00:00]} 1-0

[Event "9th Porticcio Open 2024"]
[Site "Porticcio"]
[Date "2024.07.01"]
[Round "1.11"]
[White "Parayre Soguero, Jordi"]
[Black "Fremaux, Guillaume"]
[Result "1-0"]
[ECO "D07"]
[WhiteElo "1931"]
[BlackElo "1661"]
[Annotator "NA RC"]
[PlyCount "51"]
[EventDate "2024.07.01"]
[EventType "swiss"]
[EventCountry "FRA"]
[SourceTitle "playchess.com"]
[Source "ChessBase"]
[SourceQuality "1"]
[TimeControl "5400+30"]

1. d4 {[%emt 0:00:03]} d5 {[%emt 0:00:22]} 2. c4 {[%emt 0:00:21]} Nc6 {[%emt 0:00:38]} 3. Nc3 {[%emt 0:01:47]} Nf6 {[%emt 0:00:52]} 4. Nf3 {[%emt 0:06:19]} Bg4 {[%emt 0:01:09]} 5. Ne5 {[%emt 0:04:03]} e6 {[%emt 0:09:28]} 6. Qa4 {[%emt 0:02:40]} Bb4 {[%emt 0:06:02]} 7. Bg5 {[%emt 0:05:01]} Bxc3+ {[%emt 0:06:02]} 8. bxc3 {[%emt 0:00:09]} Bf5 {[%emt 0:00:36]} 9. e3 {[%emt 0:02:47]} h6 {[%emt 0:05:39]} 10. Bxf6 {[%emt 0:07:14]} gxf6 {[%emt 0:02:04]} 11. Nxc6 {[%emt 0:00:08]} bxc6 {[%emt 0:04:51]} 12. Qxc6+ {[%emt 0:00:07]} Ke7 {[%emt 0:00:23]} 13. cxd5 {[%emt 0:02:11]} exd5 {[%emt 0:02:15]} 14. c4 {[%emt 0:08:07]} Rb8 {[%emt 0:10:10]} 15. cxd5 {[%emt 0:03:20]} Qd6 {[%emt 0:04:37]} 16. Qxd6+ {[%emt 0:06:39]} Kxd6 {[%emt 0:00:21]} 17. f3 {[%emt 0:03:22]} Bb1 {[%emt 0:05:06]} 18. Bc4 {[%emt 0:03:10]} Rb2 {[%emt 0:03:27]} 19. O-O {[%emt 0:03:39]} Bf5 {[%emt 0:07:55]} 20. Rf2 {[%emt 0:02:47]} Rhb8 {[%emt 0:00:30]} 21. Bb3 {[%emt 0:00:47]} Rxf2 {[%emt 0:08:35]} 22. Kxf2 {[%emt 0:00:06]} Rb4 {[%emt 0:01:01]} 23. Rc1 {[%emt 0:01:05]} a5 {[%emt 0:02:11]} 24. Rc6+ {[%emt 0:01:30]} Kd7 {[%emt 0:00:37]} 25. Rxf6 {[%emt 0:01:04]} Bg6 {[%emt 0:00:09]} 26. Ra6 {[%emt 0:00:32]} 1-0

[Event "9th Porticcio Open 2024"]
[Site "Porticcio"]
[Date "2024.07.01"]
[Round "2.1"]
[White "Roebers, Eline"]
[Black "Lagarde, Maxime"]
[Result "1/2-1/2"]
[ECO "B33"]
[WhiteElo "2326"]
[BlackElo "2604"]
[Annotator "TA"]
[PlyCount "146"]
[EventDate "2024.07.01"]
[EventType "swiss"]
[EventCountry "FRA"]
[SourceTitle "playchess.com"]
[Source "ChessBase"]
[SourceQuality "1"]
[TimeControl "5400+30"]

{[%evp 54,146,50,47,48,45,74,75,73,71,70,70,70,69,68,66,76,44,57,51,46,52,60,60,58,57,61,61,58,58,42,45,39,42,53,47,61,38,42,39,116,116,116,116,44,47,91,8,146,137,129,116,150,101,69,0,0,0,0,0,0,0,0,0,0,0,0,0,0,0,0,0,0,0,0,0,0,0,0,0,0,0,0,0,0,0,0,0,0,0,0,0,0,0,0]} 1. e4 {[%emt 0:00:02]} c5 {[%emt 0:01:39]} 2. Nf3 {[%emt 0:00:03]} Nc6 {[%emt 0:00:02]} 3. d4 {[%emt 0:00:22]} cxd4 {[%emt 0:00:05]} 4. Nxd4 {[%emt 0:00:02]} Nf6 {[%emt 0:00:05]} 5. Nc3 {[%emt 0:00:03]} e5 {[%emt 0:00:03]} 6. Ndb5 {[%emt 0:00:11]} d6 {[%emt 0:00:07]} 7. Bg5 {[%emt 0:04:15]} a6 {[%emt 0:00:05]} 8. Na3 {[%emt 0:00:02]} b5 {[%emt 0:00:08]} 9. Bxf6 {[%emt 0:00:04]} gxf6 {[%emt 0:00:16]} 10. Nd5 {[%emt 0:00:04]} Bg7 {[%emt 0:00:27]} 11. Bd3 {[%emt 0:01:14]} Ne7 {[%emt 0:01:47]} 12. Nxe7 {[%emt 0:05:08]} Qxe7 {[%emt 0:00:07]} 13. c4 {[%emt 0:00:12]} f5 {[%emt 0:09:20]} 14. O-O {[%emt 0:02:31]} O-O {[%emt 0:03:42]} 15. Qe2 {[%emt 0:05:39]} Rb8 {[%emt 0:17:09]} 16. f3 {[%emt 0:06:37]} fxe4 {[%emt 0:13:16]} 17. fxe4 {[%emt 0:01:29]} f5 {[%emt 0:01:29]} 18. exf5 {[%emt 0:08:37]} d5 {[%emt 0:00:12]} 19. cxd5 {[%emt 0:01:56]} e4 {[%emt 0:00:25]} 20. f6 {[%emt 0:08:21]} Qc5+ {[%emt 0:11:22]} 21. Kh1 {[%emt 0:00:16]} exd3 {[%emt 0:00:35]} 22. fxg7 {[%emt 0:00:17]} dxe2 {[%emt 0:03:12]} 23. gxf8=Q+ {[%emt 0:00:09]} Qxf8 {[%emt 0:00:04]} 24. Rxf8+ {[%emt 0:00:21]} Kxf8 {[%emt 0:00:04]} 25. Nc2 {[%emt 0:06:58]} Bb7 {[%emt 0:04:10]} 26. Re1 {[%emt 0:06:57]} Bxd5 {[%emt 0:02:10]} 27. b3 {[%emt 0:00:24]} Be4 {[%emt 0:01:18]} 28. Nd4 {[%emt 0:01:14]} Rc8 {[%emt 0:03:29]} 29. Kg1 {[%emt 0:02:22]} (29. Nxe2 Rc2 $15) 29... Bg6 {[%emt 0:00:52]} 30. Rxe2 {[%emt 0:04:28]} (30. Kf2 {seems wilder.} Bh5 31. h3 Rc3 32. Ne6+) 30... Rc1+ {[%emt 0:00:20]} 31. Kf2 {[%emt 0:00:06]} Rd1 {[%emt 0:04:01]} 32. Nc6 {[%emt 0:05:22]} Be8 {[%emt 0:06:02]} 33. Ne5 {[%emt 0:00:43]} a5 {[%emt 0:01:14]} 34. Ke3 {[%emt 0:03:49]} a4 {[%emt 0:04:37]} 35. Nd3 {[%emt 0:01:28]} Bf7 {[%emt 0:02:27]} 36. Rb2 {[%emt 0:02:07]} Ke7 {[%emt 0:02:18]} 37. Nf2 {[%emt 0:02:27]} Rc1 {[%emt 0:04:30]} 38. Kd4 {[%emt 0:02:22]} Kd6 {[%emt 0:00:48]} 39. Ne4+ {[%emt 0:00:37]} Kc6 {[%emt 0:00:05]} 40. Rf2 {[%emt 0:01:34]} Rd1+ {[%emt 0:01:52]} 41. Kc3 {[%emt 0:03:23]} Bg6 {[%emt 0:00:20]} 42. Rf6+ {[%emt 0:03:15]} Kc7 {[%emt 0:00:13]} 43. Nc5 {[%emt 0:02:48]} Rc1+ {[%emt 0:00:11]} 44. Kb4 {[%emt 0:00:16]} Rc2 {[%emt 0:00:51]} 45. Ne6+ {[%emt 0:00:46]} Kd7 {[%emt 0:00:25]} 46. Nf4 {[%emt 0:00:07]} (46. Kxb5 $2 Ke7 (46... Rxa2 47. Nc5+ Kc7 48. bxa4 $14) 47. Nd4 Kxf6 $19) 46... Rxa2 {[%emt 0:01:05]} (46... Be8 $14) 47. Nxg6 $16 {[%emt 0:00:23]} (47. Kxb5 axb3 48. Nd5 Rxg2 $19) 47... hxg6 {[%emt 0:02:04]} 48. Rxg6 {[%emt 0:02:32]} ({Reject} 48. Kxb5 $6 axb3 (48... Rxg2 49. Kxa4 Rxh2 50. Rxg6 $11) 49. Kc4 Rxg2 50. Kxb3 Ke7 $11) 48... Rb2 {[%emt 0:00:12]} 49. Rg3 {[%emt 0:00:49]} Rb1 {[%emt 0:00:42]} 50. Ka3 {[%emt 0:01:11]} ({Much weaker is} 50. Kxb5 $6 Rxb3+ 51. Kxa4 Rxg3 52. hxg3 Ke7 $11) ({Better is} 50. h3 $16) 50... Ra1+ {[%emt 0:02:11] [#]} (50... axb3 $11 51. Rxb3 Rh1) 51. Kb2 $1 $16 {[%emt 0:01:12]} Rh1 {[%emt 0:00:28]} 52. h3 {[%emt 0:00:15]} axb3 {[%emt 0:00:49] [#]} 53. Kxb3 {[%emt 0:00:38]} ({Don't play} 53. Rxb3 $6 Kc6 $14) ({White should try} 53. Rg6 $1) 53... Kc6 $16 {[%emt 0:00:03]} 54. Rg4 {[%emt 0:00:42]} (54. Kb4 $14) 54... Kc5 $11 {[%emt 0:00:09]} 55. h4 {[%emt 0:00:15]} Rb1+ {[%emt 0:00:12]} 56. Kc2 {[%emt 0:00:49]} Rh1 {[%emt 0:00:04]} 57. g3 {[%emt 0:00:37]} b4 $1 {[%emt 0:00:29]} 58. Rg8 {[%emt 0:02:52]} (58. Kb3 $5 Rb1+ $8 59. Kc2 $14) 58... Kc4 {[%emt 0:00:20]} 59. Rc8+ {[%emt 0:00:35]} Kd4 {[%emt 0:00:06]} 60. Kb2 {[%emt 0:00:28]} Rg1 {[%emt 0:01:04]} 61. Rg8 {[%emt 0:00:34]} Rh1 $1 {[%emt 0:00:04]} 62. Rg5 {[%emt 0:00:46]} Kc4 {[%emt 0:00:10]} 63. Rg4+ {[%emt 0:01:59]} Kb5 {[%emt 0:00:07]} 64. Kb3 {[%emt 0:00:12]} Rb1+ {[%emt 0:00:05]} 65. Kc2 {[%emt 0:01:03]} Rh1 $1 {[%emt 0:00:04]} 66. Rg7 {[%emt 0:00:43]} (66. Kb3 $5) 66... Kc4 {[%emt 0:00:15]} 67. Rc7+ {[%emt 0:01:21]} Kd4 {[%emt 0:00:06]} 68. Rh7 {[%emt 0:02:13]} Kc4 {[%emt 0:00:16]} 69. g4 {[%emt 0:00:40]} b3+ {[%emt 0:00:44]} 70. Kb2 {[%emt 0:00:05]} Rh2+ {[%emt 0:00:04]} 71. Kb1 {[%emt 0:00:02]} Rh1+ {[%emt 0:00:06]} 72. Kb2 {[%emt 0:00:02]} Rh2+ {[%emt 0:00:03]} 73. Kb1 {[%emt 0:00:02]} Rh1+ {[%emt 0:07:04]} 1/2-1/2

[Event "9th Porticcio Open 2024"]
[Site "Porticcio"]
[Date "2024.07.01"]
[Round "2.2"]
[White "Fedorchuk, Sergey A."]
[Black "Eden, James"]
[Result "1-0"]
[ECO "C54"]
[WhiteElo "2546"]
[BlackElo "2334"]
[Annotator "TA"]
[PlyCount "39"]
[EventDate "2024.07.01"]
[EventType "swiss"]
[EventCountry "FRA"]
[SourceTitle "playchess.com"]
[Source "ChessBase"]
[SourceQuality "1"]
[TimeControl "5400+30"]

{[%evp 22,39,21,24,18,28,25,14,23,8,68,46,91,99,443,422,1086,1143,1138,1125]} 1. e4 {[%emt 0:00:04]} e5 {[%emt 0:00:16]} 2. Nf3 {[%emt 0:00:30]} Nc6 {[%emt 0:00:10]} 3. Bc4 {[%emt 0:01:16]} Nf6 {[%emt 0:00:33]} 4. d3 {[%emt 0:00:24]} Bc5 {[%emt 0:00:45]} 5. O-O {[%emt 0:01:26]} O-O {[%emt 0:01:50]} 6. h3 {[%emt 0:03:38]} d6 {[%emt 0:02:16]} 7. c3 {[%emt 0:01:28]} a6 {[%emt 0:01:15]} 8. Bb3 {[%emt 0:02:49]} Ba7 {[%emt 0:01:40]} 9. Re1 {[%emt 0:03:02]} h6 {[%emt 0:03:43]} 10. Nbd2 {[%emt 0:02:32][%cal Bb1d2,Bd2f1,Bf1g3][%mdl 32]} Re8 {[%emt 0:02:46]} 11. Nf1 {[%emt 0:02:34]} Be6 {[%emt 0:00:24]} 12. Ng3 {[%emt 0:00:13]} d5 {[%emt 0:00:49]} 13. exd5 {[%emt 0:00:58]} Bxd5 {[%emt 0:00:26]} 14. Bc2 {[%emt 0:00:47]} Qd6 {[%emt 0:08:03] The position is equal.} 15. Nh4 {[%emt 0:03:50]} Rad8 {[%emt 0:04:18]} ({Black should try} 15... Ne7 $11) 16. Nhf5 $14 {[%emt 0:02:10]} Qd7 {[%emt 0:00:35]} 17. Qd2 {[%emt 0:15:04][%cal Of5g7] [#] Nxg7! is the strong threat.} Bc5 $2 {[%emt 0:11:37][%mdl 8192]} (17... Nh7 $16) 18. Nxg7 $1 $18 {[%emt 0:04:12] White is clearly winning.} Kxg7 {[%emt 0:03:56]} (18... Bf8 $142 19. Nxe8 Rxe8) 19. Qxh6+ {[%emt 0:00:09]} Kg8 {[%emt 0:00:05]} 20. Qg5+ {[%emt 0:01:18] Black did not feel at home in the position after the opening.   Weighted Error Value: White=0.02 (flawless) /Black=1.04.  Loses game:     	---       	Black=1      Mistake:       	---       	Black=2      Inaccurate:     	---       	Black=1      OK:         	White=4     	---        Best:        	White=1     	---        Strong:       	White=1     	---} 1-0

[Event "9th Porticcio Open 2024"]
[Site "Porticcio"]
[Date "2024.07.01"]
[Round "2.3"]
[White "Kuru, Atilla"]
[Black "Hamdouchi, Hicham"]
[Result "1-0"]
[ECO "C02"]
[WhiteElo "2314"]
[BlackElo "2527"]
[Annotator "TA"]
[PlyCount "43"]
[EventDate "2024.07.01"]
[EventType "swiss"]
[EventCountry "FRA"]
[SourceTitle "playchess.com"]
[Source "ChessBase"]
[SourceQuality "1"]
[TimeControl "5400+30"]

{[%evp 16,43,-31,-14,0,-8,0,-27,-33,-48,-42,-45,-40,-58,51,54,58,56,46,54,72,75,57,-48,390,404,1086,1054,1287,1270]} 1. e4 {[%emt 0:02:53]} e6 {[%emt 0:00:07]} 2. d4 {[%emt 0:01:06]} d5 {[%emt 0:00:07]} 3. e5 {[%emt 0:02:59]} c5 {[%emt 1:31:46]} 4. c3 {[%emt 0:00:09]} Qb6 {[%emt 0:00:00]} 5. Nf3 {[%emt 0:00:07]} Bd7 {[%emt 0:00:00]} 6. Bd3 {[%emt 0:04:03]} cxd4 {[%emt 0:00:00]} 7. cxd4 {[%emt 0:00:10]} Nc6 {[%emt 0:00:00]} 8. O-O {[%emt 0:05:03]} Nxd4 {[%emt 0:00:00]} 9. Nbd2 {[%emt 0:00:03]} Nc6 {[%emt 0:00:00]} 10. Nb3 {[%emt 0:00:57]} Nge7 {[%emt 0:00:00]} 11. Re1 {[%emt 0:29:01]} Ng6 {[%emt 0:00:00] Black has an edge.} 12. Bd2 {[%emt 0:08:16]} Be7 {[%emt 0:00:00]} 13. Rc1 {[%emt 0:01:51]} O-O {[%emt 0:00:00]} 14. h4 {[%emt 0:00:30]} Rae8 {[%emt 0:00:00]} ({Inferior is} 14... Nxh4 15. Nxh4 Bxh4 16. Bxh7+ Kxh7 17. Qh5+ Kg8 18. Qxh4 $18) (14... Rfc8 $1 $15) 15. h5 $14 {[%emt 0:03:05][%cal Od2e3] aiming for Be3!} Nh4 {[%emt 0:00:00]} 16. Nxh4 {[%emt 0:00:06]} Bxh4 {[%emt 0:00:00]} 17. Nc5 {[%emt 0:00:45] And now g3 would win. Active counter play!} Bc8 {[%emt 0:00:00]} 18. Qg4 $1 $36 {[%emt 0:07:56][%mdl 2048] White is in control.} Qxb2 {[%emt 0:00:00]} 19. h6 {[%emt 0:23:01]} (19. Nb3 $1 $14 Nxe5 20. Rxe5 (20. Qxh4 Nxd3 21. Qg3 Nxc1 $11) 20... Bxf2+ 21. Kxf2 Qxe5 22. Bc3) 19... g6 $2 {[%emt 0:00:00][%mdl 8192]} ({Worse is} 19... Nxe5 20. Qxg7#) (19... Bxf2+ $15 {stays ahead.} 20. Kh1 g6 (20... Qxd2 21. Qxg7#)) 20. Qxh4 $18 {[%emt 0:00:14][%cal Oh4f6] White threatens Qf6! and mate.} Qxd2 {[%emt 0:00:00] [#]} (20... f5 $142 21. Bg5 d4) 21. Rcd1 $1 {[%emt 0:00:04]} g5 {[%emt 0:00:00] [#]} 22. Qh5 $1 {[%emt 0:09:11] Weighted Error Value: White=0.13 (very precise) /Black=0.66.  Loses game:     	---       	Black=1      Mistake:       	White=1     	Black=2      Inaccurate:     	White=1     	---        OK:         	White=3     	Black=4      Best:        	White=4     	Black=2      Strong:       	White=2     	---} 1-0